bitfinex-derivatives/quotes_SOLF0:USTF0_20220110
["timestamp","ask_amount","ask_price","bid_price","bid_amount"]
[1641816023087,48.9932,139.47,139.38,1.793]
[1641816023088,4.0,139.46,139.38,1.793]
[1641816023288,2.0,139.4,139.35,36.62933332]
[1641816023789,48.9932,139.47,139.35,36.62933332]
[1641816023990,2.0,139.4,139.36,4.06228372]
[1641816024393,2.0,139.42,139.37,22.0]
[1641816024590,4.0,139.42,139.37,6.222]
[1641816024791,2.0,139.43,139.38,7.17000072]
[1641816024991,2.0,139.43,139.42,55.32958]
[1641816025190,2.0,139.45,139.42,63.42758]
[1641816025390,2.0,139.46,139.42,63.42758]
[1641816025592,2.0,139.46,139.43,1.792]
[1641816025992,2.0,139.45,139.43,5.85428372]
[1641816026191,2.0,139.44,139.43,2.06228372]
[1641816026591,2.0,139.44,139.38,7.17025777]
[1641816026792,4.0,139.49,139.38,7.17025777]
[1641816026991,4.0,139.49,139.41,27.66479]
[1641816027693,27.66479,139.5,139.41,27.66479]
[1641816028093,27.66479,139.5,139.41,29.45679]
[1641816028794,10.36827218,139.5,139.42,20.0]
[1641816028994,10.36827218,139.5,139.48,27.66479]
[1641816029193,10.36827218,139.5,139.48,35.15279]
[1641816029594,4.0,139.51,139.46,27.66479]
[1641816029800,4.0,139.51,139.47,8.176]
[1641816030198,14.36061282,139.51,139.47,8.176]
[1641816030399,2.0,139.49,139.47,8.176]
[1641816032803,2.62780597,139.48,139.47,8.176]
[1641816033603,2.0,139.49,139.47,8.176]
[1641816034905,2.0,139.49,139.43,27.66479]
[1641816035106,2.0,139.49,139.43,51.66479]
[1641816035507,2.0,139.49,139.44,15.22775961]
[1641816035707,2.0,139.49,139.44,17.01975961]
[1641816036107,2.0,139.49,139.45,4.06058527]
[1641816036306,2.0,139.49,139.45,12.79258527]
[1641816036908,2.0,139.49,139.46,4.06058527]
[1641816037307,2.0,139.49,139.44,7.16717434]
[1641816037508,2.49341252,139.48,139.44,7.16717434]
[1641816037910,2.49341252,139.48,139.45,4.06043561]
[1641816038110,2.49341252,139.48,139.45,11.21543561]
[1641816038709,2.49341252,139.48,139.46,4.06043561]
[1641816039210,2.49341252,139.48,139.44,8.95917434]
[1641816039609,2.49341252,139.48,139.45,4.06029297]
[1641816039810,2.49341252,139.48,139.45,12.70929297]
[1641816040711,2.49341252,139.48,139.46,4.06029297]
[1641816041111,2.49341252,139.48,139.46,31.72508297]
[1641816041513,2.49341252,139.48,139.47,4.06029297]
[1641816041712,4.49341252,139.48,139.47,4.06029297]
[1641816042012,2.0,139.48,139.47,4.06029297]
[1641816042414,2.0,139.48,139.44,7.16717434]
[1641816042415,4.49341252,139.48,139.44,7.16717434]
[1641816042813,2.49341252,139.47,139.44,7.16717434]
[1641816043213,2.49341252,139.47,139.45,4.06066351]
[1641816044113,2.49341252,139.47,139.44,15.54417434]
[1641816045417,15.61441252,139.47,139.42,1.792]
[1641816045617,4.0,139.46,139.39,14.05650564]
[1641816046017,2.49341252,139.46,139.39,14.05650564]
[1641816046517,2.49341252,139.46,139.4,4.06179157]
[1641816046918,2.49341252,139.46,139.4,11.50879157]
[1641816047118,27.66479,139.45,139.4,11.50879157]
[1641816047319,27.66479,139.45,139.4,13.30179157]
[1641816047518,27.66479,139.45,139.41,4.06179157]
[1641816047918,2.49341252,139.44,139.41,4.06179157]
[1641816049119,2.49341252,139.44,139.42,34.83273495]
[1641816049319,2.49341252,139.47,139.42,34.83273495]
[1641816049920,2.49341252,139.47,139.43,4.06179157]
[1641816050220,2.49341252,139.47,139.43,9.87179157]
[1641816050620,2.49341252,139.47,139.44,4.06179157]
[1641816051220,2.49341252,139.47,139.46,27.66479]
[1641816051421,2.49341252,139.47,139.46,35.13979]
[1641816052019,2.49341252,139.47,139.46,7.475]
[1641816052622,2.49341252,139.47,139.43,1.792]
[1641816053023,5.13998056,139.47,139.43,1.792]
[1641816053224,5.13998056,139.47,139.45,27.66479]
[1641816053824,2.49341252,139.46,139.45,27.66479]
[1641816054223,5.13998056,139.46,139.45,27.66479]
[1641816054623,5.13998056,139.46,139.45,31.72525178]
[1641816055024,2.49341252,139.46,139.45,31.72525178]
[1641816055524,2.49341252,139.47,139.45,31.72525178]
[1641816056029,2.49341252,139.47,139.46,4.06046178]
[1641816056227,2.49341252,139.47,139.46,11.80746178]
[1641816056727,2.49341252,139.47,139.46,18.9736089]
[1641816057228,15.04802983,139.5,139.48,5.73532558]
[1641816057429,50.70226151,139.53,139.49,27.66479]
[1641816057627,48.70226151,139.53,139.5,7.52563709]
[1641816058231,10.41813214,139.53,139.49,27.66479]
[1641816058430,4.0,139.58,139.49,27.66479]
[1641816058633,1.74573471,139.52,139.49,27.66479]
[1641816059032,5.74573471,139.57,139.49,27.66479]
[1641816059433,2.64696912,139.51,139.49,27.66479]
[1641816059932,1.74573471,139.5,139.49,27.66479]
[1641816060135,2.64696912,139.51,139.5,3.98898814]
[1641816060333,2.64696912,139.51,139.5,1.792]
[1641816060733,2.64696912,139.55,139.5,1.792]
[1641816060935,2.64696912,139.55,139.47,1.791]
[1641816061135,2.0,139.5,139.47,1.791]
[1641816061438,2.0,139.5,139.48,31.72453042]
[1641816061834,1.39667834,139.49,139.48,27.66479]
[1641816062234,4.04364746,139.49,139.48,31.72440332]
[1641816062436,1.25044746,139.49,139.48,31.72440332]
[1641816063035,2.0,139.5,139.48,31.72440332]
[1641816063235,2.0,139.5,139.49,1.792]
[1641816063837,2.0,139.5,139.49,5.85147671]
[1641816064138,3.32658759,139.5,139.49,14.81647671]
[1641816064337,3.32658759,139.5,139.49,10.757]
[1641816064540,3.32658759,139.5,139.47,1.792]
[1641816064741,10.44458759,139.5,139.45,29.45679]
[1641816064939,4.0,139.49,139.45,27.66479]
[1641816065136,10.44458759,139.5,139.43,7.16768806]
[1641816065337,31.66479,139.47,139.46,4.06017386]
[1641816065536,31.66479,139.47,139.41,1.792]
[1641816065537,38.01779,139.47,139.4,7.16922967]
[1641816065738,4.0,139.46,139.38,27.66479]
[1641816065936,34.01779,139.47,139.38,27.66479]
[1641816065937,38.01779,139.47,139.38,27.66479]
[1641816066738,34.01779,139.47,139.38,27.66479]
[1641816067038,0.81229782,139.46,139.39,4.0614891]
[1641816067437,0.81229782,139.46,139.41,27.66479]
[1641816067639,0.81229782,139.46,139.41,34.15679]
[1641816067838,0.81229782,139.46,139.42,7.16794495]
[1641816068039,0.81229782,139.46,139.41,35.94879]
[1641816068240,10.4283279,139.48,139.42,4.0614891]
[1641816068538,0.81229782,139.45,139.42,4.0614891]
[1641816068940,0.81229782,139.47,139.42,4.0614891]
[1641816069442,0.81229782,139.49,139.42,4.0614891]
[1641816069643,0.81229782,139.49,139.42,5.8534891]
[1641816070147,0.81229782,139.49,139.42,35.5914613]
[1641816070341,0.81229782,139.49,139.44,4.0]
[1641816070543,0.81229782,139.49,139.45,1.792]
[1641816070741,0.81229782,139.49,139.45,5.8534891]
[1641816071141,0.81229782,139.49,139.45,5.73673002]
[1641816071350,0.81229782,139.49,139.47,27.66479]
[1641816071744,0.81229782,139.49,139.47,25.66479]
[1641816072143,9.24062572,139.53,139.47,25.66479]
[1641816073144,27.66479,139.54,139.47,25.66479]
[1641816073744,4.0,139.53,139.46,1.792]
[1641816073946,4.0,139.5,139.43,1.792]
[1641816074148,5.759,139.5,139.41,27.66479]
[1641816074545,5.759,139.5,139.42,7.16820186]
[1641816074745,1.77813696,139.49,139.42,13.02075741]
[1641816075148,1.77813696,139.49,139.43,4.06055555]
[1641816075349,1.77813696,139.49,139.44,27.66479]
[1641816075547,1.77813696,139.51,139.44,27.66479]
[1641816075948,1.77813696,139.51,139.45,4.06055555]
[1641816076147,1.77813696,139.51,139.45,10.82055555]
[1641816076949,1.77813696,139.51,139.46,4.06055555]
[1641816077648,1.77813696,139.51,139.45,1.792]
[1641816078249,42.24883317,139.52,139.46,4.06021903]
[1641816078650,1.77813696,139.51,139.45,1.792]
[1641816079252,1.77813696,139.51,139.45,7.52862115]
[1641816081156,1.77813696,139.51,139.45,13.26508121]
[1641816081357,1.77813696,139.51,139.46,4.06024223]
[1641816081755,1.77813696,139.51,139.5,27.66479]
[1641816082056,17.53071627,139.53,139.51,5.73435024]
[1641816082256,17.53071627,139.53,139.52,1.791]
[1641816083057,2.0,139.53,139.52,1.791]
[1641816083258,3.24225358,139.53,139.52,1.791]
[1641816083457,3.24225358,139.53,139.51,5.73435024]
[1641816084255,1.24225358,139.52,139.51,5.73435024]
[1641816084657,1.24225358,139.52,139.51,9.79302937]
[1641816086057,2.0,139.53,139.52,4.4913741]
[1641816086258,2.0,139.53,139.52,1.791]
[1641816086857,2.0,139.53,139.5,56.61937036]
[1641816087457,1.2420472,139.52,139.51,4.05851662]
[1641816088058,10.2190472,139.52,139.51,4.05851662]
[1641816088760,10.2190472,139.52,139.5,27.66479]
[1641816089059,8.977,139.52,139.51,4.05880199]
[1641816090062,8.977,139.52,139.5,27.66479]
[1641816090463,2.0,139.53,139.51,4.05863116]
[1641816091367,2.0,139.53,139.51,10.19363116]
[1641816091866,2.0,139.53,139.52,4.05863116]
[1641816092764,2.0,139.53,139.51,4.05863116]
[1641816093866,2.0,139.53,139.52,27.66479]
[1641816094165,2.0,139.53,139.52,35.65579]
[1641816094568,2.0,139.53,139.52,39.71442116]
[1641816096468,2.0,139.53,139.52,45.44795765]
[1641816097269,2.0,139.53,139.52,47.23895765]
[1641816098069,2.0,139.53,139.52,52.97263103]
[1641816098470,2.0,139.53,139.52,47.23909454]
[1641816099069,2.0,139.53,139.52,51.23909454]
[1641816099271,15.13287809,139.59,139.54,5.73307013]
[1641816099471,15.13287809,139.6,139.55,1.791]
[1641816100070,13.13287809,139.6,139.56,4.05863116]
[1641816100472,48.3667,139.62,139.56,4.05863116]
[1641816100671,78.89079,139.65,139.56,4.05863116]
[1641816100875,4.0,139.59,139.56,4.05863116]
[1641816101071,4.0,139.6,139.56,4.05863116]
[1641816101271,4.0,139.6,139.55,4.05863116]
[1641816101473,10.754,139.6,139.55,4.05863116]
[1641816102172,6.754,139.6,139.55,31.72342116]
[1641816102571,4.0,139.61,139.55,31.72342116]
[1641816102772,14.37967629,139.64,139.55,37.95342116]
[1641816102972,14.37967629,139.64,139.56,4.05863116]
[1641816103172,14.37967629,139.64,139.57,1.79]
[1641816103374,16.67977485,139.66,139.59,5.73081649]
[1641816103572,16.67977485,139.66,139.6,25.79]
[1641816103772,16.67977485,139.66,139.63,25.72928602]
[1641816103975,14.67977485,139.66,139.65,27.66479]
[1641816104673,14.67977485,139.66,139.65,34.82068109]
[1641816104874,0.86764605,139.66,139.65,4.05863116]
[1641816105275,0.86764605,139.66,139.62,7.15768377]
[1641816105473,7.77464605,139.66,139.62,7.15768377]
[1641816105675,6.907,139.66,139.62,7.15768377]
[1641816106174,31.66479,139.73,139.65,27.66479]
[1641816106374,4.0,139.72,139.65,27.66479]
[1641816106574,4.0,139.7,139.63,27.66479]
[1641816106975,4.0,139.69,139.62,7.15768377]
[1641816107175,4.0,139.69,139.64,4.05519558]
[1641816107379,6.08543957,139.69,139.64,4.05519558]
[1641816107577,2.0,139.66,139.64,4.05519558]
[1641816107777,2.0,139.66,139.63,4.05519558]
[1641816108177,2.08543957,139.65,139.63,4.05519558]
[1641816108582,2.08543957,139.64,139.63,4.05519558]
[1641816113686,2.08543957,139.64,139.6,36.61375481]
[1641816113880,2.08543957,139.64,139.6,34.82375481]
[1641816114079,2.08543957,139.64,139.6,7.15896481]
[1641816114480,27.66479,139.65,139.6,7.15896481]
[1641816115481,3.30222487,139.64,139.6,7.15896481]
[1641816116481,7.30222487,139.64,139.6,7.15896481]
[1641816116684,7.30222487,139.64,139.56,27.66479]
[1641816116880,4.0,139.61,139.55,8.95152827]
[1641816117081,11.707,139.61,139.57,4.05669646]
[1641816117380,7.707,139.61,139.57,4.05669646]
[1641816117582,7.30222487,139.6,139.56,4.05669646]
[1641816117781,3.30222487,139.6,139.56,4.05669646]
[1641816118181,3.30222487,139.59,139.56,4.05669646]
[1641816118783,3.30222487,139.59,139.56,11.2174555]
[1641816119085,3.30222487,139.58,139.56,11.2174555]
[1641816119283,3.30222487,139.58,139.57,1.791]
[1641816119484,3.30222487,139.58,139.57,11.90169646]
[1641816119684,2.0,139.66,139.57,19.06143012]
[1641816119884,2.0,139.66,139.6,7.15870857]
[1641816120085,2.0,139.66,139.6,40.87149857]
[1641816120385,2.0,139.66,139.6,33.71279]
[1641816120584,4.0,139.64,139.6,6.048]
[1641816120784,4.0,139.63,139.6,6.048]
[1641816120984,4.0,139.64,139.56,7.16075904]
[1641816121186,1.09599901,139.62,139.56,7.16075904]
[1641816121983,1.09599901,139.62,139.57,4.05661318]
[1641816123789,1.09599901,139.63,139.57,4.05661318]
[1641816124589,2.63374643,139.62,139.57,4.05661318]
[1641816124990,1.09599901,139.61,139.57,4.05661318]
[1641816125992,29.66479,139.66,139.57,4.05661318]
[1641816125993,1.09599901,139.63,139.57,4.05661318]
[1641816126192,1.09599901,139.63,139.57,11.17861318]
[1641816126393,1.09599901,139.65,139.57,11.17861318]
[1641816126593,5.09599901,139.65,139.57,11.17861318]
[1641816126794,5.09599901,139.65,139.58,4.05661318]
[1641816127093,5.09599901,139.65,139.58,5.84661318]
[1641816127294,4.0,139.63,139.58,5.84661318]
[1641816127493,4.0,139.63,139.58,4.05661318]
[1641816127693,1.09599901,139.62,139.59,4.05661318]
[1641816128093,3.72956046,139.62,139.59,4.05661318]
[1641816128395,3.72956046,139.62,139.58,4.05661318]
[1641816128595,1.09599901,139.61,139.56,7.16075904]
[1641816128993,1.09599901,139.61,139.57,4.05656223]
[1641816129695,1.09599901,139.61,139.57,10.23556223]
[1641816130097,1.09599901,139.61,139.58,4.05656223]
[1641816130296,1.09599901,139.62,139.58,4.05656223]
[1641816130497,1.09599901,139.6,139.58,4.05656223]
[1641816131098,1.09599901,139.63,139.58,4.05656223]
[1641816131499,1.09599901,139.59,139.58,4.05656223]
[1641816131898,2.0,139.62,139.58,4.05656223]
[1641816132299,1.09599901,139.61,139.58,4.05656223]
[1641816136307,5.09599901,139.61,139.58,4.05656223]
[1641816136505,4.0,139.6,139.58,4.05656223]
[1641816136907,4.0,139.59,139.52,15.14114583]
[1641816137106,4.0,139.57,139.52,15.14114583]
[1641816137307,4.0,139.57,139.5,22.30498278]
[1641816137308,6.22,139.57,139.5,22.30498278]
[1641816137506,4.0,139.55,139.5,15.14114583]
[1641816138307,4.0,139.55,139.47,55.03628808]
[1641816138308,3.52950406,139.54,139.51,4.05817922]
[1641816138806,13.71150406,139.54,139.49,4.05817922]
[1641816139006,9.71150406,139.54,139.49,4.05817922]
[1641816139306,3.52950406,139.53,139.49,4.05817922]
[1641816139807,3.52950406,139.53,139.48,4.05817922]
[1641816140207,4.0,139.51,139.48,4.05817922]
[1641816140410,31.66479,139.51,139.48,4.05817922]
[1641816140808,3.52950406,139.5,139.48,4.05817922]
[1641816141007,11.35650406,139.5,139.45,15.14114583]
[1641816141209,4.0,139.48,139.45,15.14114583]
[1641816141809,4.0,139.48,139.43,15.14114583]
[1641816142010,4.0,139.47,139.43,15.14114583]
[1641816142309,11.438,139.47,139.43,15.14114583]
[1641816142510,31.7254147,139.46,139.44,3.7784817]
[1641816142710,4.0606247,139.46,139.44,3.7784817]
[1641816143110,4.0,139.49,139.44,3.7784817]
[1641816143613,4.0,139.48,139.44,3.7784817]
[1641816143810,8.06020451,139.48,139.41,3.7784817]
[1641816144010,4.0,139.47,139.41,3.7784817]
[1641816144210,13.084,139.47,139.45,3.7784817]
[1641816144409,40.74879,139.47,139.45,3.7784817]
[1641816144610,36.74879,139.47,139.45,3.7784817]
[1641816144810,4.06020451,139.46,139.4,3.7784817]
[1641816145011,4.06020451,139.46,139.45,7.507]
[1641816145211,131.53149,139.51,139.45,7.507]
[1641816145410,31.66479,139.51,139.45,7.507]
[1641816145812,4.05957947,139.5,139.46,3.7784817]
[1641816146015,4.0,139.48,139.46,8.17e-05]
[1641816146213,4.0,139.47,139.4,24.9082933]
[1641816146415,27.66479,139.45,139.4,24.9082933]
[1641816146612,27.66479,139.45,139.38,84.91104777]
[1641816146811,27.66479,139.45,139.38,34.83504777]
[1641816147314,4.0,139.49,139.38,34.83504777]
[1641816147513,4.0,139.49,139.38,42.27304777]
[1641816147714,4.06050794,139.48,139.39,2.61695971]
[1641816147915,4.06050794,139.48,139.43,7.16768806]
[1641816148116,4.06050794,139.48,139.43,14.53868806]
[1641816148316,4.06050794,139.49,139.43,7.371]
[1641816148715,8.06050794,139.47,139.44,2.61695971]
[1641816149114,4.06050794,139.46,139.44,2.61695971]
[1641816149716,4.06050794,139.46,139.43,2.61695971]
[1641816150116,4.06050794,139.46,139.45,2.61695971]
[1641816150520,4.06050794,139.46,139.44,2.61695971]
[1641816150919,4.0,139.45,139.44,2.61695971]
[1641816151120,4.0,139.45,139.38,7.17000072]
[1641816151318,4.0,139.44,139.38,7.17000072]
[1641816151520,4.0,139.41,139.36,15.14114583]
[1641816151721,4.0,139.4,139.34,15.14114583]
[1641816152318,8.186,139.41,139.34,15.14114583]
[1641816152518,4.0,139.38,139.32,2.39792136]
[1641816152717,11.472,139.38,139.32,2.39792136]
[1641816153120,4.0,139.37,139.32,2.39792136]
[1641816153421,8.06229148,139.37,139.31,7.17360115]
[1641816153820,4.06229148,139.36,139.29,27.66479]
[1641816154020,4.06229148,139.36,139.28,7.1751453]
[1641816154220,4.06229148,139.36,139.27,15.14114583]
[1641816154221,4.0,139.34,139.27,15.14114583]
[1641816154421,4.0,139.33,139.27,15.14114583]
[1641816154621,27.66479,139.32,139.25,15.14114583]
[1641816154821,31.66479,139.32,139.25,15.14114583]
[1641816155024,4.06229148,139.31,139.25,15.14114583]
[1641816155222,12.74029148,139.31,139.25,15.14114583]
[1641816155621,4.0,139.3,139.23,7.17797796]
[1641816155822,4.0,139.28,139.23,7.17797796]
[1641816156023,9.125,139.28,139.23,7.17797796]
[1641816156223,4.0,139.25,139.22,27.66479]
[1641816156422,12.687,139.25,139.21,15.14114583]
[1641816156622,12.687,139.25,139.2,7.17926628]
[1641816156826,8.687,139.25,139.2,7.17926628]
[1641816157022,12.687,139.25,139.2,7.17926628]
[1641816157224,8.687,139.25,139.2,7.17926628]
[1641816158523,8.687,139.25,139.2,34.84405628]
[1641816159526,27.66479,139.32,139.21,24.0]
[1641816159726,4.0,139.31,139.22,1.795]
[1641816160029,8.06415051,139.31,139.23,7.17797796]
[1641816160226,8.06415051,139.31,139.22,8.97349323]
[1641816160526,4.0,139.29,139.22,7.17849323]
[1641816160926,4.0,139.25,139.22,7.17849323]
[1641816161127,9.886,139.25,139.22,7.17849323]
[1641816161328,9.886,139.25,139.2,27.66479]
[1641816161526,5.886,139.25,139.17,1.795]
[1641816161727,11.886,139.25,139.17,1.795]
[1641816161925,11.886,139.25,139.16,45.65630379]
[1641816162427,4.0,139.24,139.16,30.51515796]
[1641816162725,31.66479,139.23,139.16,28.72015796]
[1641816162924,27.66479,139.23,139.16,28.72015796]
[1641816163325,31.66479,139.23,139.16,28.72015796]
[1641816163526,4.0,139.17,139.09,40.3442268]
[1641816163726,13.0,139.17,139.09,40.3442268]
[1641816164326,9.0,139.17,139.09,40.3442268]
[1641816164526,27.66479,139.13,139.09,40.3442268]
[1641816164727,34.45079,139.13,139.09,40.3442268]
[1641816164927,34.45079,139.13,139.08,1.796]
[1641816165127,34.45079,139.13,139.09,4.0]
[1641816165327,34.45079,139.13,139.09,1.797]
[1641816166328,34.45079,139.13,139.1,1.66215461]
[1641816166530,27.66479,139.15,139.1,1.66215461]
[1641816167128,27.66479,139.15,139.1,5.66215461]
[1641816167328,27.66479,139.15,139.1,1.66215461]
[1641816167530,27.66479,139.15,139.11,1.66215461]
[1641816168129,27.66479,139.15,139.1,1.66215461]
[1641816171233,27.66479,139.15,139.09,1.66215461]
[1641816171933,27.66479,139.15,139.09,5.66215461]
[1641816172132,27.66479,139.15,139.1,4.0]
[1641816172334,27.66479,139.15,139.1,5.796]
[1641816172531,27.66479,139.15,139.11,7.41272254]
[1641816172732,27.66479,139.12,139.11,7.41272254]
[1641816172932,27.66479,139.12,139.09,1.797]
[1641816173133,27.66479,139.12,139.08,8.69905019]
[1641816173732,27.66479,139.12,139.1,5.75090828]
[1641816174134,27.66479,139.12,139.08,8.6994088]
[1641816174334,27.66479,139.12,139.06,14.96]
[1641816174533,27.66479,139.12,139.06,10.96]
[1641816174733,27.66479,139.12,139.05,7.55000768]
[1641816174935,27.66479,139.12,139.03,53.3601]
[1641816175338,4.06904487,139.11,139.03,53.3601]
[1641816175536,4.06904487,139.11,139.02,12.437]
[1641816175839,4.06904487,139.11,139.04,4.0]
[1641816176038,4.06904487,139.11,139.04,12.196]
[1641816176237,4.06904487,139.11,139.05,7.55013086]
[1641816176438,27.66479,139.12,139.05,7.55013086]
[1641816176639,27.66479,139.08,139.05,2.38675578]
[1641816177639,27.66479,139.08,139.04,1.797]
[1641816177838,27.66479,139.08,139.03,2.38675578]
[1641816178240,4.0,139.07,139.03,2.38675578]
[1641816178439,31.66479,139.08,139.03,2.38675578]
[1641816178642,27.66479,139.04,139.03,2.38675578]
[1641816178940,27.66479,139.04,138.97,12.758]
[1641816179340,27.66479,139.04,138.96,42.1422268]
[1641816179540,34.23679,139.04,138.96,42.1422268]
[1641816179742,34.23679,139.04,138.98,2.38729183]
[1641816180342,4.07156927,139.03,138.98,2.38729183]
[1641816180741,27.66479,139.01,138.98,2.38729183]
[1641816181142,27.66479,139.01,138.96,4.18529183]
[1641816181343,27.66479,139.01,138.96,2.38729183]
[1641816183244,27.66479,139.01,138.98,20.0]
[1641816183443,27.66479,139.04,138.99,4.0]
[1641816183643,27.66479,139.04,138.99,1.798]
[1641816184043,27.66479,139.04,138.98,1.798]
[1641816184747,27.66479,139.01,138.99,2.38729183]
[1641816185948,27.66479,139.01,138.97,2.38729183]
[1641816186647,27.66479,139.01,138.96,12.11098119]
[1641816187147,27.66479,139.01,138.96,21.8679625]
[1641816187348,27.66479,139.01,138.96,17.8679625]
[1641816188150,27.66479,139.01,138.97,1.66486811]
[1641816188851,27.66479,139.01,138.97,4.05215994]
[1641816189755,27.66479,139.01,138.98,4.05215994]
[1641816190556,27.66479,139.01,138.99,1.66486811]
[1641816190759,27.66479,139.0,138.99,6.811e-05]
[1641816191358,27.66479,139.0,138.99,2.38735994]
[1641816192158,31.66479,139.0,138.99,2.38735994]
[1641816192359,35.73720282,139.0,138.95,64.80045041]
[1641816192760,27.66479,138.96,138.93,40.3442268]
[1641816193567,27.66479,139.0,138.93,40.3442268]
[1641816193766,27.66479,139.0,138.93,48.9412268]
[1641816194165,27.66479,139.0,138.94,4.0]
[1641816194365,27.66479,139.0,138.93,50.7392268]
[1641816194667,27.66479,139.0,138.97,15.13283577]
[1641816195766,27.66479,139.0,138.98,15.13283577]
[1641816197371,4.0,139.08,138.98,15.13283577]
[1641816197571,58.8471,139.08,138.98,15.13283577]
[1641816197771,4.07126937,139.07,138.98,15.13283577]
[1641816197971,6.07126937,139.07,138.98,15.13283577]
[1641816198173,4.0,139.05,139.01,15.13283577]
[1641816198973,27.66479,139.03,139.01,15.13283577]
[1641816199374,27.66479,139.03,138.99,15.13283577]
[1641816199781,4.0,139.01,138.99,3.577e-05]
[1641816199974,4.0,139.01,138.97,40.3442268]
[1641816200375,5.8700388,139.02,138.97,40.3442268]
[1641816200577,4.0,139.01,138.97,40.3442268]
[1641816200977,27.66479,139.0,138.97,40.3442268]
[1641816201176,31.73741861,139.0,138.97,40.3442268]
[1641816201580,27.66479,139.0,138.97,40.3442268]
[1641816201779,27.66479,139.0,138.93,18.71282987]
[1641816201980,27.66479,139.0,138.93,11.52168936]
[1641816202179,27.66479,139.0,138.93,9.72368936]
[1641816202579,27.66479,139.0,138.93,40.3442268]
[1641816203179,27.66479,139.0,138.93,44.3442268]
[1641816203780,27.66479,139.0,138.93,40.3442268]
[1641816204378,27.66479,139.0,138.93,42.1432268]
[1641816204581,27.66479,139.0,138.96,40.3442268]
[1641816205780,29.46279,139.0,138.96,40.3442268]
[1641816206279,29.46279,139.0,138.94,40.3442268]
[1641816206482,33.46279,139.0,138.94,40.3442268]
[1641816207183,4.0,138.99,138.94,40.3442268]
[1641816207383,4.0,138.95,138.91,59.19382802]
[1641816207585,4.0,138.94,138.91,59.19382802]
[1641816207883,1.799,138.93,138.91,59.19382802]
[1641816208084,14.654,138.95,138.91,59.19382802]
[1641816208284,10.654,138.95,138.92,1.7387311]
[1641816208584,4.07457129,138.94,138.86,1.7387311]
[1641816208984,27.66479,138.92,138.86,5.7387311]
[1641816209284,27.66479,138.92,138.86,7.5377311]
[1641816209584,1.799,138.98,138.89,4.0]
[1641816209784,7.19553877,139.0,138.9,1.799]
[1641816210085,4.07370931,138.97,138.91,9.75899391]
[1641816210287,4.07370931,138.97,138.92,7.55758453]
[1641816210483,4.07370931,138.99,138.92,20.78458453]
[1641816210684,4.07370931,138.99,138.93,4.0]
[1641816210885,4.07370931,138.99,138.94,27.66479]
[1641816211084,4.07370931,139.02,138.94,27.66479]
[1641816211485,4.07370931,139.02,138.95,1.7387311]
[1641816212084,4.07370931,139.02,138.95,11.46242046]
[1641816212885,4.07370931,139.02,138.96,1.7387311]
[1641816213084,4.07370931,139.02,138.96,7.9017311]
[1641816213684,6.0,139.03,138.96,7.9017311]
[1641816213884,2.0,139.03,138.96,7.9017311]
[1641816214083,2.0,139.03,138.97,1.7387311]
[1641816214484,4.07276988,139.02,138.97,1.7387311]
[1641816214884,4.07276988,139.02,138.95,1.7387311]
[1641816215984,4.07276988,139.02,138.95,11.54091901]
[1641816216585,4.07276988,139.02,138.96,1.7387311]
[1641816217386,2.0,139.03,138.96,1.7387311]
[1641816217787,4.07243522,139.02,138.96,1.7387311]
[1641816219089,27.66479,139.01,138.96,1.7387311]
[1641816222291,36.19979,139.01,138.96,1.7387311]
[1641816222492,40.19979,139.01,138.96,1.7387311]
[1641816222692,4.07322278,139.0,138.96,1.7387311]
[1641816222895,4.0,138.98,138.96,1.7387311]
[1641816223095,9.924,138.98,138.96,1.7387311]
[1641816223292,9.924,138.98,138.96,3.11e-05]
[1641816224593,9.924,138.98,138.92,3.11e-05]
[1641816224996,27.66479,138.96,138.92,3.11e-05]
[1641816225599,4.0,138.98,138.91,3.11e-05]
[1641816226102,1.798,138.99,138.91,3.11e-05]
[1641816226299,8.99453877,139.0,138.91,3.11e-05]
[1641816226500,11.19553877,139.0,138.91,3.11e-05]
[1641816227002,27.66479,138.98,138.91,3.11e-05]
[1641816227400,35.08479,138.98,138.91,3.11e-05]